Cogmind - Beta 16.1 @@@ ROGUE MODE // 2026.04.08 @ 23:55:14 Player: Ammie Result: Self-destructed Performance ------------- Evolutions (1) 500 Regions Visited (2) 400 Robots Destroyed (68) 340 Value Destroyed (1432) 1432 Prototype IDs (3) 60 Alien Tech Used (0) 0 Bonus (0) 0 TOTAL SCORE: 2732 Bonus ------- None Cogmind --------- Core Integrity 141/400 Matter 300/300 Energy 271/280 System Corruption 1% Temperature Cool (27) Movement Core (250) Ox4 Location -9/Materials Parts ------- > --- POWER (1) -------- Cooled Ion Engine > --- PROPULSION (3) --- (None) > --- UTILITY (3) ------ Heat Sink Small Storage Unit Advanced Targeting Computer > --- WEAPON (2) ------- (None) > --- INVENTORY (8) ---- Improved Ion Engine Heat Sink Weight Redist. System Advanced Targeting Computer Hardlight Generator Hacking Suite Hacking Suite Peak State ------------ > --- POWER ------------ Cooled Ion Engine > --- PROPULSION ------- Hover Unit Hover Unit Hover Unit > --- UTILITY ---------- Improved Heat Sink Small Storage Unit Advanced Targeting Computer > --- WEAPON ----------- Heavy EM Pulse Gun Improved EM Shotgun > --- INVENTORY -------- Improved Ion Engine Hover Unit Hover Unit Weight Redist. System Advanced Targeting Computer Hardlight Generator Hacking Suite Hacking Suite [Rating: 19] Favorites ----------- Power Cooled Ion Engine Engine Cooled Ion Engine Propulsion Hover Unit Leg Aluminum Leg Hover Unit Hover Unit Utility Small Storage Unit Device Improved Heat Sink Storage Small Storage Unit Processor Advanced Targeting Computer Weapon Heavy EM Pulse Gun Energy Gun Heavy EM Pulse Gun Energy Cannon Particle Cannon Ballistic Gun Autogun Ballistic Cannon Light Cannon Build | -11 -10 -9 ------- Run | Yrd Mat Mat Slots Evolved 2 | . . 2 Power . | . . . Propulsion 1 | . . 1 Utility 1 | . . 1 Weapon . | . . . Parts Attached 40 | 6 7 27 Power 4 | 1 1 2 Engine 4 | 1 1 2 Core . | . . . Reactor . | . . . Propulsion 12 | 2 2 8 Treads . | . . . Leg 4 | 2 2 . Wheel . | . . . Hover 8 | . . 8 Flight . | . . . Utility 7 | 1 1 5 Device 4 | . 1 3 Storage 1 | 1 . . Processor 2 | . . 2 Hackware . | . . . Protection . | . . . Artifact . | . . . Weapon 17 | 2 3 12 Energy Gun 11 | . 1 10 Energy Cannon 1 | . . 1 Ballistic Gun 4 | 2 1 1 Ballistic Cannon 1 | . 1 . Launcher . | . . . Special Weapon . | . . . Impact Weapon . | . . . Slashing Weapon . | . . . Piercing Weapon . | . . . Special Melee Weapon . | . . . Unidentified Prototypes 3 | . . 3 Parts Lost 14 | . 1 13 Power 1 | . . 1 Propulsion 8 | . 1 7 Utility 1 | . . 1 Weapon 4 | . . 4 Highest Loss Streak 4 | . 1 4 To Critical Strikes . | . . . Average Backups 6 | 1 7 6 Power 1 | . 1 1 Propulsion . | . 1 . Utility 3 | . 1 4 Weapon 1 | . 2 . Tool/Special . | . . . Unused Backups 13 | . 4 9 Power 2 | . . 2 Propulsion . | . . . Utility 7 | . . 7 Weapon 4 | . 4 . Tool/Special . | . . . Average Slot Usage (%) 90 | . 97 85 Engine 11 | . 13 10 Leg 10 | . 27 . Hover 12 | . . 20 Device 11 | . 12 10 Storage 12 | . 14 11 Processor 6 | . . 10 Energy Gun 15 | . 12 17 Ballistic Gun 3 | . 3 3 Ballistic Cannon 4 | . 11 . Peak Build Rating 19 | 6 11 19 Average Rating 12 | 5 10 14 On Entrance 5 | . 6 10 Avg Prop Armor Cover (%) . | . . . Naked Turns . | . . . Heaviest Build 21 | 11 17 21 Greatest Support 27 | 20 20 27 Greatest Overweight (x) 2 | 2 1 2 Average Overweight (x) . | . . . Largest Inventory Capacity 8 | 8 8 8 Average Capacity 7 | 7 8 8 Most Carried 8 | 2 8 8 Average Carried 6 | 1 7 6 Final Capacity 8 | 8 8 8 Final Carried 8 | 2 8 7 Class Distribution -------------------- 54% | Mutant 45% | Scavenger-Mutant Dominant Class ---------------- Scavenger-Mutant | -10/Materials Mutant | -9/Materials Resources | -11 -10 -9 ----------- Run | Yrd Mat Mat Matter Collected 1126 | 205 330 591 Remotely . | . . . Salvage Created 2238 | . 759 1479 Parts 139 | . 40 99 Haulers Intercepted 7 | . 1 6 Recyclers Shooed 2 | . 1 1 Parts Field Recycled . | . . . Retrieved Matter . | . . . Parts Self-Destructed . | . . . Prevented . | . . . Parts Restored . | . . . Kills | -11 -10 -9 ------- Run | Yrd Mat Mat Combat Hostiles Destroyed 41 | . 14 27 Guns 31 | . 8 23 Cannons 9 | . 5 4 AOE 1 | . 1 . Classes Destroyed 11 | . 8 3 Worker 3 | . . 3 Builder 2 | . 2 . Tunneler 2 | . 1 1 Hauler 7 | . 1 6 Recycler 3 | . 3 . Operator 4 | . 1 3 Watcher 6 | . 2 4 Swarmer 15 | . 3 12 Grunt 17 | . 11 6 Brawler 1 | . . 1 Sentry 8 | . . 8 Best Kill Streak 9 | . 7 9 Combat Bots Only 7 | . 3 7 Max Kills in Single Turn 3 | . 3 2 Gunslinging . | . . . Exploded 1 | . 1 . Melee . | . . . Uniques/NPCs Destroyed . | . . . Combat | -11 -10 -9 -------- Run | Yrd Mat Mat Hostile Shots Fired 236 | . 75 161 Missed 74 | . 20 54 Hits 162 | . 55 107 Projectile 162 | . 55 107 Critical Strikes 7 | . 1 6 Damage Taken 1818 | . 679 1139 Core 384 | . 125 259 Absorbed by Shields . | . . . Regen/Repaired (Parts) 45 | . 45 . Core Remaining (%) 75 | 100 50 . Volleys Fired 166 | . 47 119 Largest 2 | . 2 2 Hottest 113 | . 95 113 Shots Fired 293 | . 89 204 Gun 239 | . 48 191 Cannon 54 | . 41 13 Launcher . | . . . Special . | . . . Kinetic 116 | . 53 63 Thermal 91 | . 36 55 Explosive . | . . . Electromagnetic 86 | . . 86 Robot Hit Streak 12 | . 4 12 Robot Miss Streak 5 | . 5 4 Penetration Max . | . . . Secondary Targets 4 | . . 4 Max Gunslinging Chain 1 | . . 1 Shots Hit Robots 166 | . 40 126 Core Hits 85 | . 30 55 Critical Kills . | . . . Critical Parts Destroyed . | . . . Critical Strikes 3 | . 1 2 Burn 2 | . . 2 Blast 1 | . 1 . Melee Attacks . | . . . Impact . | . . . Slashing . | . . . Piercing . | . . . Sneak Attacks . | . . . Combat Hostiles . | . . . Follow-up Attacks . | . . . Damage Inflicted 3161 | . 1094 2067 Guns 2087 | . 302 1785 Cannons 647 | . 440 207 Explosions 427 | . 352 75 Melee . | . . . Ramming . | . . . Kinetic 992 | . 519 473 Thermal 1015 | . 223 792 Explosive 352 | . 352 . Electromagnetic 802 | . . 802 Impact . | . . . Slashing . | . . . Piercing . | . . . Highest Corruption 1 | . . 1 Average Corruption 1 | . . 1 Corruption Purged . | . . . Corruption Blocked . | . . . Effects 7 | . . 7 Message Errors 1 | . . 1 Matter Fused 3 | . . 3 Misfires 1 | . . 1 Weapon Failures 2 | . . 2 Overload Shots . | . . . Overflow Damage 7 | . 4 3 Projectiles 3 | . . 3 Explosions 4 | . 4 . Melee . | . . . Knockbacks 3 | . 3 . Impact . | . . . Kinetic 3 | . 3 . Secondary . | . . . Self-Inflicted Damage 34 | . 34 . Shots 1 | . 1 . Rammed . | . . . Targets Rammed . | . . . Kicked . | . . . Crushed . | . . . Highest Temperature 333 | . 39 333 Average Temperature 78 | . 11 98 Received Heat Transfer 636 | . 300 336 Effects 1 | . . 1 Interference 1 | . . 1 Siege Activations . | . . . Martial Activations . | . . . Shielding Activations . | . . . Robots Disrupted . | . . . Combat Hostiles . | . . . Robots Corrupted 1 | . . 1 Combat Hostiles . | . . . Parts Fried 1 | . . 1 Impact Corruptions . | . . . Robots Melted . | . . . Combat Hostiles . | . . . Parts Melted 2 | . 1 1 Heat Transferred 2381 | . 555 1826 Parts Sabotaged . | . . . Parts Stolen . | . . . Parts Stripped . | . . . Power Chain Reactions 1 | . . 1 Alert | -11 -10 -9 ------- Run | Yrd Mat Mat Maximum Alert Level 1 | . . 1 Low Security (%) 64 | 100 100 41 Level 1 35 | . . 58 Level 2 . | . . . Level 3 . | . . . Level 4 . | . . . Level 5 . | . . . High Security . | . . . Max Security . | . . . Peak Influence 351 | . 182 351 Initial 61 | . . 61 Average 163 | . 97 213 Influence Increases 1340 | . 491 849 Destroy 0b10 Robot/C 820 | . 280 540 Destroy 0b10 Robot/NC 135 | . 50 85 Destroy Leader 226 | . 76 150 Successful Hack 13 | . 5 8 Disable Machine 75 | . 60 15 Destroy Structure 11 | . 5 6 Lose Combat Pursuer 60 | . 15 45 Influence Decreases 1094 | . 346 748 Entered New Map 84 | . . 84 Time Decay 870 | . 336 534 Lost Part 140 | . 10 130 Squads Dispatched 7 | . 4 3 Investigation 3 | . 2 1 Extermination . | . . . Reinforcement 4 | . 2 2 Assault . | . . . Garrison . | . . . Intercept . | . . . Searches Triggered . | . . . Construction Impeded . | . . . Haulers Reinforced . | . . . Active Scanning Responses . | . . . Cargo Convoy Interrupts . | . . . Stealth | -11 -10 -9 --------- Run | Yrd Mat Mat Distress Signals 7 | . 2 5 Communications Jammed . | . . . Distress Signals . | . . . Times Spotted 61 | . 18 43 Peak Tracking Total 6 | . 3 6 Tactical Retreats 4 | . 1 3 Traps | -11 -10 -9 ------- Run | Yrd Mat Mat Traps Triggered 5 | . 3 2 Indirectly . | . . . Trap Hack Attempts . | . . . Triggered . | . . . Disarmed . | . . . Reprogrammed . | . . . Reused . | . . . Traps Extracted . | . . . Installed . | . . . Triggered . | . . . Machines | -11 -10 -9 ---------- Run | Yrd Mat Mat Machines Disabled 5 | . 4 1 Max in Single Turn 2 | . 2 1 Machines Repaired . | . . . Machines Dismantled . | . . . Machines Sabotaged . | . . . Overloaded Fab Kills . | . . . Hacking | -11 -10 -9 --------- Run | Yrd Mat Mat Machines Accessed 5 | . 2 3 Terminals 2 | . 1 1 Fabricators . | . . . Repair Stations 1 | . 1 . Recycling Units . | . . . Scanalyzers 2 | . . 2 Garrison Access . | . . . Total Hacks 10 | . 3 7 Successful 9 | . 3 6 Failed . | . . . Catastrophic . | . . . Database Lockouts 1 | . . 1 Manual . | . . . Terminals 2 | . 1 1 Fabricators . | . . . Repair Stations 2 | . 2 . Recycling Units . | . . . Scanalyzers 6 | . . 6 Garrison Access . | . . . Terminal Hacks 2 | . 1 1 Hauler Manifests 1 | . 1 . Registered Components 1 | . . 1 Fabricator Hacks . | . . . Repair Station Hacks 2 | . 2 . Scan Component 1 | . 1 . Repair 1 | . 1 . Recycling Unit Hacks . | . . . Scanalyzer 5 | . . 5 Insert Component 2 | . . 2 Analyze 2 | . . 2 Retrieve Study 1 | . . 1 Garrison Access Hacks . | . . . Unauthorized Hacks . | . . . Terminals . | . . . Fabricators . | . . . Repair Stations . | . . . Recycling Units . | . . . Scanalyzers . | . . . Garrison Access . | . . . Data Cores Recovered 2 | . . 2 Used . | . . . Hacking Detections 5 | . 2 3 Full Trace Events . | . . . Feedback Events . | . . . Feedback Blocked . | . . . Robot Schematics Acquired . | . . . Robots Built . | . . . Authchips . | . . . Time . | . . . Total Robot Build Rating . | . . . Part Schematics Acquired 2 | . . 2 Parts Built . | . . . Authchips . | . . . Time . | . . . Total Part Build Rating . | . . . Part Studies Acquired 1 | . . 1 Parts Repaired 1 | . 1 . Time 26 | . 26 . Parts Recycled . | . . . Recycled Matter . | . . . Retrieved Matter . | . . . Retrieved Components . | . . . Parts Scanalyzed 2 | . . 2 Part Schematics Acquired 2 | . . 2 Parts Damaged . | . . . Bothacking | -11 -10 -9 ------------ Run | Yrd Mat Mat Used RIF Installer . | . . . Robots Hacked . | . . . Non-combat . | . . . Combat . | . . . Robot Hacks Applied . | . . . Relay Couplers Released . | . . . Fabnet Peak Effective % . | . . . Robots Rewired . | . . . Allies Hacked . | . . . Hacks Repelled . | . . . Allies | -11 -10 -9 -------- Run | Yrd Mat Mat Total Allies . | . . . Largest Group . | . . . Highest-Rated Group . | . . . Highest-Rated Ally . | . . . Total Orders . | . . . Ally Attacks . | . . . Total Damage . | . . . Kills . | . . . Allies Corrupted . | . . . Allies Melted . | . . . Intel | -11 -10 -9 ------- Run | Yrd Mat Mat Active Infowar (turns) . | . . . Robot Analysis Total . | . . . Derelict Logs Recovered . | . . . Drone Launches . | . . . Drone Recoveries . | . . . Exploration | -11 -10 -9 ------------- Run | Yrd Mat Mat Turns Passed 2506 | 84 913 1509 Spaces Moved 1716 | 63 572 1081 Core 6 | 6 . . Treads . | . . . Legs 629 | 57 572 . Wheels . | . . . Hover 1081 | . . 1081 Flight . | . . . Fastest Speed 50 | 50 120 52 Average Speed 106 | 117 122 97 Slowest Speed 190 | 150 190 180 Overloaded Moves . | . . . Propulsion Burnouts . | . . . Robots Hopped . | . . . Potential Cave-ins . | . . . Cave-ins Triggered . | . . . Exploration Rate (%) 51 | 4 76 74 Regions Visited 2 Branch Regions . Pre-discovered Areas . | . . . Known Exits Taken . | . . . Unknown Exits Taken 2 | 1 1 . Scrap Searched . | . . . Spaces Dug . | . . . Terrain Destroyed 8 | . 5 3 Melee . | . . . Projectile . | . . . AOE 8 | . 5 3 Terrain Rammed . | . . . Walls Destroyed . | . . . Machines Disabled . | . . . Actions | -11 -10 -9 --------- Run | Yrd Mat Mat Total 2113 | 70 698 1345 Wait 131 | . 49 82 Move 1714 | 62 571 1081 Hop . | . . . Pick Up 28 | 2 13 13 Fast Attach 12 | 6 2 4 Attach 9 | . . 9 Detach 1 | . . 1 Swap 28 | . 6 22 Drop 24 | . 10 14 Fire 166 | . 47 119 Melee . | . . . Ram . | . . . Kick . | . . . Crush . | . . . Escape Stasis . | . . . Rewire . | . . . Trap . | . . . Miscellaneous . | . . . Route ------- -11/Scrapyard -10/Materials (discovered 2 exits: *Mat x2) -9/Materials (discovered 5 exits: [*Mat x2] / [*Min x2] / [*Sto]) History --------- Turn | Location | Event 7 | -11/Scrapyard | Discovered new exit (range 16) 85 | -11/Scrapyard | Entered Materials 277 | -10/Materials | Discovered new exit (range 3) 319 | -10/Materials | Build established: Mutant 494 | -10/Materials | Discovered new exit (range 13) 660 | -10/Materials | Build established: Scavenger-Mutant 726 | -10/Materials | Repaired Ion Engine 998 | -10/Materials | Entered another Materials area 998 | -9/Materials | Evolved 2 slots: Propulsion x1, Utility x1 1003 | -9/Materials | Discovered new exit (range 4) 1122 | -9/Materials | Discovered new exit (range 14) 1185 | -9/Materials | Lost 3 parts (1p1n1w) 1396 | -9/Materials | Central database locked down 1702 | -9/Materials | Discovered new exit (range 9) 1778 | -9/Materials | Destroyed 7 combat bots 1781 | -9/Materials | Lost 4 parts (3n1u) 1996 | -9/Materials | Build established: Mutant 2029 | -9/Materials | Discovered new exit (range 16) 2062 | -9/Materials | Core integrity fell below 50% 2273 | -9/Materials | Discovered new exit (range 11) 2507 | -9/Materials | Self-destructed Last Messages --------------- 02393_ K-01 Serf cleans the Fusion Modulator. 02411_ Chain reaction triggered in Lgt. Ion Engine. 02411_ K-01 Serf destroyed. 02414_ A-02 Transporter destroyed. 02416_ U-05 Engineer lays Concrete. 02419_ U-05 Engineer builds a Wall. 02421_ U-05 Engineer lays Concrete. 02422_ K-01 Serf collects debris. 02423_ U-05 Engineer lays Concrete. 02425_ U-05 Engineer builds a Wall. 02426_ U-05 Engineer lays Concrete. 02432_ U-05 Engineer builds a Wall. 02473_ System corrupted: Matter fused (-8). 02490_ S-10 Pest destroyed. 02490_ Switching to secondary target: S-10 Pest. 02492_ W-16 Scout sends out distress signal. 02492_ Hover Unit+ destroyed. 02496_ S-10 Pest destroyed. 02504_ Hvy. EM Pulse Gun destroyed. 02507_ Critical hit (Burn: +37). Map ----- +----------------------------------------------------+ | ?????????????????????????????????????????????????? | | ?????????????????????????????????????????????????? | | ?????????????????????????????????????????????????? | | ?????????????????????????????????????????????????? | | ?????????????????????????????????????????????????? | | ?????????????????????????????????????????????????? | | ?????????????????????????????????????????????????? | | ???????????????????????????????????"?????????????? | | ??????????????????????????????????##/#########??## | | ??????????????????????????????????# #### | | ???????????????????????????????????? =*! | | ??????????????????????????????????????? =%*[ | | ????????????????????????????????##########% !! | | ????????????????????????????????# # !! | | ????????????????????????????????# "" """ # ! | | ????????????????????????????????# "T """ # | | ????????????????????#???????????# "" """ # | | ????????????????????#Y??????????# + """" | | ????????????????????# ??????????# """ # """" | | ????????????????????# ?????????# [ """ # """" | | ????????????????????# Y?????????# """ # = | | ????????????????????# ????????# # ] | | ????????????????????#[%%############+##### | | ????????????????????# s w ^^ | | ####+##?????????????# | | ?????????????# @ ^ | | ?????????????#########+##### ########### | | ? ????????????????????# !# # #??# | | ?# ########????????????# #! # #??# | | ?# # T / #????????????# """ /===+ #??# | | ?# # #????????????# """ #%=%# #### | | ?# # #????????????# """ #!= # + | | ?# # ! #????????????# # # #### | | ?# # #????????????######## ########??## | | ?# # #?####??????????????# #??????????# | | ?# ##+###### !!#??????????????# #??????????# | | ?# T !!#??????????????# #???######?# | | ?+ //#??????????????# #???# ?# | | ?# //#??????????????# #???# # | | ?# " """" !!#??????????????# #???# # | | ?# """"""""" !!#??????????????# #???# + | | ?# """ """ #####??????????????# #???# # | | ?# #??????????????????# = #???# # | | ?# [ #????#########?????#[%*#???######?# | | ##### %% #????#""!"|""#?????#%%=#??????????# | | ####+#????# ##???# "!"|" #######[[%#????""????# | | ??????????# ##### ##### % *#??""""????# | | ??????????# !=% ==# """""???# | | ??????????# < === T[%+ """""???# | | ??????????# """ =[%=* *=# """ ??# | +----------------------------------------------------+ Best States ------------- Heat Dissipation 42 Energy Generation 14 Energy Capacity 280 Matter Stores 300 Matter Capacity 300 Sight Range 16 Terrain Scan Density 10 Additional Mass Support 6 Evasion (%) 55 Targeting Accuracy 8 Item Schematics ----------------- Hover Unit | -9/Materials | Scanalyzed Cld. Ion Engine | -9/Materials | Scanalyzed Robot Schematics ------------------ None Fabricated ------------ Nothing Repaired ---------- Ion Engine | 25% | -10/Materials Studied --------- Hover Unit | -9/Materials | Hacked Alien Tech Used ----------------- None Achievements -------------- None Challenges ------------ None Game ------ Seed NovaLobotomyMesh Manual? 0 Play Time 00:20:15 Cumulative 44.7 hours Start 2026.04.08 @ 20:18:36 End 2026.04.08 @ 23:55:14 Sessions 3 Manual Loads 0 Difficulty Rogue Special Mode None Game No. 78 Rogue 78 Adventurer 0 Explorer 0 Win Type - Total 0 Types 0/0/0/0/0/0/0/0/0/0 Lore% 16 Gallery% 24 Achievement% 20 Wizard Run 0 Options --------- Layout 0 ASCII 0 Keyboard 0 Movement Mouse Keybinds 0 Fullscreen 1 Font 24/Smallcaps Map View 76x50 Zoom Use 99% Tactical HUD 1 Map Filters NONE Filters NONE Steam 1 RUN: c5a345db-32a7-4e1b-a8f5-b4645140ac33